bitfinex-derivatives/quotes_ETHF0:USTF0_20251225
["timestamp","ask_amount","ask_price","bid_price","bid_amount"]
[1766644146448,1.01593174,2940.0,2939.2,3.40810352]
[1766644146645,4.49272973,2940.1,2939.2,3.40810352]
[1766644146840,1.01593177,2940.0,2939.2,3.40810352]
[1766644147146,4.49272973,2940.1,2939.2,3.40810352]
[1766644147342,1.01592802,2940.0,2939.2,3.40810352]
[1766644147640,4.49272973,2940.1,2939.2,3.40810352]
[1766644147840,1.01587424,2940.0,2939.2,3.40810352]
[1766644148044,4.49272973,2940.1,2939.2,3.40810352]
[1766644148244,1.0158701,2940.0,2939.2,3.40810352]
[1766644148439,4.49272973,2940.1,2939.2,3.40810352]
[1766644148745,1.01582945,2940.0,2939.2,3.40810352]
[1766644148947,4.49272973,2940.1,2939.2,3.40810352]
[1766644149147,1.01582951,2940.0,2939.2,3.40810352]
[1766644149448,4.49272973,2940.1,2939.2,3.40810352]
[1766644149639,1.0157934,2940.0,2939.2,3.40810352]
[1766644149839,4.49272973,2940.1,2939.2,3.40810352]
[1766644150040,1.01579334,2940.0,2939.2,3.40810352]
[1766644150241,4.49272973,2940.1,2939.2,3.40810352]
[1766644150442,1.01576406,2940.0,2939.2,3.40810352]
[1766644150650,4.49272973,2940.1,2939.2,3.40810352]
[1766644150850,1.01576409,2940.0,2939.2,3.40810352]
[1766644151052,4.49272973,2940.1,2939.2,3.40810352]
[1766644151253,1.01576025,2940.0,2939.2,3.40810352]
[1766644151452,4.49272973,2940.1,2939.2,3.40810352]
[1766644151750,1.01574016,2940.0,2939.2,3.40810352]
[1766644151937,4.49272973,2940.1,2939.2,3.40810352]
[1766644152143,1.01573294,2940.0,2939.2,3.40810352]
[1766644152343,4.49272973,2940.1,2939.2,3.40810352]
[1766644152639,1.01570906,2940.0,2939.2,3.40810352]
[1766644152844,4.49272973,2940.1,2939.2,3.40810352]
[1766644153042,1.01570906,2940.0,2939.2,3.40810352]
[1766644153241,4.49272973,2940.1,2939.2,3.40810352]
[1766644153441,1.01569826,2940.0,2939.2,3.40810352]
[1766644153644,4.49272973,2940.1,2939.2,3.40810352]
[1766644153843,1.01569837,2940.0,2939.2,3.40810352]
[1766644154052,4.49272973,2940.1,2939.2,3.40810352]
[1766644154250,1.01569424,2940.0,2939.2,3.40810352]
[1766644154450,4.49272973,2940.1,2939.2,3.40810352]
[1766644154653,1.01568452,2940.0,2939.2,3.40810352]
[1766644154853,4.49272973,2940.1,2939.2,3.40810352]
[1766644155059,1.01568452,2940.0,2939.2,3.40810352]
[1766644155263,4.49272973,2940.1,2939.2,3.40810352]
[1766644155450,1.01567425,2940.0,2939.2,3.40810352]
[1766644155653,4.49272973,2940.1,2939.2,3.40810352]
[1766644155958,1.01567425,2940.0,2939.2,3.40810352]
[1766644156160,4.49272973,2940.1,2939.2,3.40810352]
[1766644156463,1.0156719,2940.0,2939.2,3.40810352]
[1766644156660,4.49272973,2940.1,2939.2,3.40810352]
[1766644156961,1.01566682,2940.0,2939.2,3.40810352]
[1766644157168,4.49272973,2940.1,2939.2,3.40810352]
[1766644157363,1.01566529,2940.0,2939.2,3.40810352]
[1766644157562,4.49272973,2940.1,2939.2,3.40810352]
[1766644157763,1.01566241,2940.0,2939.2,3.40810352]
[1766644157951,4.49272973,2940.1,2939.2,3.40810352]
[1766644158157,1.01566241,2940.0,2939.2,3.40810352]
[1766644158357,4.49272973,2940.1,2939.2,3.40810352]
[1766644158563,1.01566109,2940.0,2939.2,3.40810352]
[1766644158765,4.49272973,2940.1,2939.2,3.40810352]
[1766644158967,1.01566106,2940.0,2939.2,3.40810352]
[1766644159166,4.49272973,2940.1,2939.2,3.40810352]
[1766644159359,1.01566052,2940.0,2939.2,3.40810352]
[1766644159561,4.49272973,2940.1,2939.2,3.40810352]
[1766644159763,1.01566198,2940.0,2939.2,3.40810352]
[1766644159967,4.49272973,2940.1,2939.2,3.40810352]
[1766644160160,1.01566145,2940.0,2939.2,3.40810352]
[1766644160361,4.49272973,2940.1,2939.2,3.40810352]
[1766644160561,1.0155732,2940.0,2939.2,3.40810352]
[1766644160762,4.49272973,2940.1,2939.2,3.40810352]
[1766644161061,1.01556997,2940.0,2939.3,5.962]
[1766644161261,4.49272973,2940.1,2939.3,5.962]
[1766644161564,1.01553712,2940.0,2939.3,5.962]
[1766644161760,4.49272973,2940.1,2939.3,5.962]
[1766644161964,1.01553709,2940.0,2939.3,5.962]
[1766644162168,4.49272973,2940.1,2939.3,5.962]
[1766644162358,1.01554447,2940.0,2939.3,5.962]
[1766644162558,4.49272973,2940.1,2939.3,5.962]
[1766644162758,1.01554874,2940.0,2939.3,5.962]
[1766644162958,4.49272973,2940.1,2939.3,5.962]
[1766644163159,1.01554874,2940.0,2939.3,5.962]
[1766644163360,4.49272973,2940.1,2939.3,5.962]
[1766644163659,1.01556556,2940.0,2939.3,5.962]
[1766644163860,4.49272973,2940.1,2939.3,5.962]
[1766644164060,1.01556553,2940.0,2939.3,5.962]
[1766644164261,4.49272973,2940.1,2939.3,5.962]
[1766644164468,1.01558629,2940.0,2939.3,5.962]
[1766644164667,4.49272973,2940.1,2939.3,5.962]
[1766644164871,1.01552624,2940.0,2939.3,5.962]
[1766644165071,4.49272973,2940.1,2939.3,5.962]
[1766644165264,1.01554536,2940.0,2939.3,5.962]
[1766644165461,1.01554536,2939.9,2939.3,5.962]
[1766644165665,4.49272973,2940.1,2939.3,5.962]
[1766644165866,1.01555199,2940.0,2939.3,5.962]
[1766644166062,1.01555199,2939.9,2939.2,0.00510352]
[1766644166264,10.51476199,2939.8,2938.5,3.403]
[1766644166568,1.01555199,2939.7,2938.5,3.403]
[1766644166770,1.01555199,2939.6,2938.5,3.403]
[1766644166969,10.20658439,2939.5,2938.5,3.403]
[1766644167158,1.01555199,2939.4,2938.7,0.00510352]
[1766644167367,0.00510352,2939.3,2938.7,0.00510352]
[1766644173370,0.00510352,2939.3,2938.8,3.403]
[1766644192280,3.26716257,2939.5,2938.8,3.403]
[1766644192480,4.39738597,2939.5,2938.8,3.403]
[1766644193284,0.00510352,2939.4,2938.8,3.403]
[1766644196887,1.11446404,2939.5,2938.8,3.403]
[1766644197786,0.00510352,2939.4,2938.8,3.403]
[1766644202384,1.12978969,2939.5,2938.8,3.403]
[1766644203188,3.403,2939.7,2938.8,3.403]
[1766644203383,0.00510352,2939.5,2938.8,3.403]
[1766644203688,0.00510352,2939.5,2938.8,9.364]
[1766644204188,1.13649866,2939.5,2938.8,9.364]
[1766644204384,0.00510352,2939.5,2938.8,9.364]
[1766644284058,0.00510352,2939.5,2938.9,3.403]
[1766644288868,0.00510352,2939.5,2939.0,3.403]
[1766644293666,0.00510352,2939.5,2939.1,3.403]
[1766644312299,4.57969832,2939.8,2939.1,3.403]
[1766644312592,1.01981638,2939.7,2939.1,3.403]
[1766644312791,1.01981638,2939.6,2939.1,3.403]
[1766644312996,4.57969832,2939.8,2939.1,3.403]
[1766644313295,1.02492179,2939.7,2939.1,3.403]
[1766644313494,1.01981827,2939.6,2939.1,3.403]
[1766644314300,0.00510352,2939.7,2939.2,5.957]
[1766644314487,0.85829832,2939.8,2939.2,5.957]
[1766644314690,0.67449832,2939.8,2939.2,5.957]
[1766644315381,0.55509832,2939.8,2939.2,5.957]
[1766644315581,0.49539832,2939.8,2939.2,5.957]
[1766644315791,0.43569832,2939.8,2939.2,5.957]
[1766644318298,3.49187263,2940.3,2939.2,5.957]
[1766644318594,4.66066081,2940.3,2939.2,6.90427459]
[1766644318788,3.49187263,2940.3,2939.2,6.90427459]
[1766644321798,0.08887263,2940.3,2939.2,6.90427459]
[1766644329100,0.08887263,2940.3,2939.2,7.07451459]
[1766644336905,0.00414888,2941.0,2939.3,3.90831887]
[1766644337111,3.403,2940.9,2939.4,11.91]
[1766644337310,4.59477002,2940.9,2939.4,11.91]
[1766644339015,4.59077349,2940.9,2939.4,11.91]
[1766644339414,3.403,2940.9,2939.4,11.91]
[1766644339616,4.59077349,2940.9,2939.4,11.91]
[1766644339812,4.59077349,2940.9,2939.4,12.08023]
[1766644340018,4.58590054,2940.9,2939.4,12.08023]
[1766644340323,4.58904942,2941.0,2939.7,0.17022]
[1766644340510,4.58904942,2941.0,2939.8,9.364]
[1766644341522,4.56678282,2941.0,2939.8,10.32684679]
[1766644342517,4.58761748,2941.0,2939.8,10.34221054]
[1766644344215,4.58509514,2941.0,2939.8,10.34868439]
[1766644345317,3.40614888,2941.0,2939.8,9.364]
[1766644345511,4.55467421,2941.0,2939.8,10.34375511]
[1766644345712,3.40614888,2941.0,2939.8,9.364]
[1766644346624,4.59529219,2941.0,2939.8,10.37840447]
[1766644347621,3.40614888,2941.0,2939.8,9.364]
[1766644347821,4.64019492,2941.0,2939.8,10.35823295]
[1766644348824,3.40614888,2941.0,2939.8,9.364]
[1766644349016,4.5987486,2941.0,2939.8,10.35623037]
[1766644349219,0.00414888,2941.0,2939.8,10.52644037]
[1766644355831,0.00414888,2941.0,2939.9,17.867]
[1766644361229,3.40614888,2941.0,2940.0,9.365]
[1766644361435,3.40614888,2941.0,2940.2,0.00510352]
[1766644361733,3.40614888,2941.0,2940.1,9.24591218]
[1766644362132,3.40614888,2941.0,2940.0,5.963]
[1766644362332,3.40614888,2941.0,2939.8,4.39423037]
[1766644362533,1.01368946,2940.9,2939.8,4.39423037]
[1766644362728,0.00510352,2940.6,2940.1,0.00510352]
[1766644363035,3.402,2940.5,2940.1,0.00510352]
[1766644363937,3.40710352,2940.6,2940.1,0.00510352]
[1766644367025,0.00510352,2940.6,2940.1,9.37010352]
[1766644386059,0.00414888,2941.0,2940.1,9.37010352]
[1766644386259,3.40614888,2941.0,2940.1,9.37010352]
[1766644388168,1.01363851,2940.9,2940.1,9.37010352]
[1766644388372,3.40614888,2941.0,2940.1,9.37010352]
[1766644388567,1.0136694,2940.9,2940.1,9.37010352]
[1766644388767,3.40614888,2941.0,2940.1,9.37010352]
[1766644388972,1.01366996,2940.9,2940.1,9.37010352]
[1766644389178,3.40614888,2941.0,2940.1,9.37010352]
[1766644389366,1.01399651,2940.9,2940.1,9.37010352]
[1766644389565,3.40614888,2941.0,2940.1,9.37010352]
[1766644389876,1.01399835,2940.9,2940.1,9.37010352]
[1766644390075,3.40614888,2941.0,2940.1,9.37010352]
[1766644390273,1.01447969,2940.9,2940.1,9.37010352]
[1766644390478,3.40614888,2941.0,2940.1,9.37010352]
[1766644390679,1.01451207,2940.9,2940.1,9.37010352]
[1766644390867,3.40614888,2941.0,2940.1,9.37010352]
[1766644391173,1.01451175,2940.9,2940.1,9.37010352]
[1766644391375,3.40614888,2941.0,2940.1,9.37010352]
[1766644391577,1.01456366,2940.9,2940.1,9.37010352]
[1766644391771,3.40614888,2941.0,2940.1,9.37010352]
[1766644391972,1.01456363,2940.9,2940.1,9.37010352]
[1766644392173,3.40614888,2941.0,2940.1,9.37010352]
[1766644393065,0.00414888,2941.0,2940.1,9.37010352]
[1766644393277,3.40614888,2941.0,2940.1,9.37010352]
[1766644398272,0.00414888,2941.0,2940.1,9.37010352]
[1766644398472,3.40614888,2941.0,2940.1,9.37010352]
[1766644399175,0.00414888,2941.0,2940.1,9.37010352]
[1766644399381,3.40614888,2941.0,2940.1,9.37010352]
[1766644413688,3.40614888,2941.0,2940.2,5.962]
[1766644413890,3.40614888,2941.0,2940.2,9.364]
[1766644422192,0.00414888,2941.0,2940.2,9.364]
[1766644456013,3.40614888,2941.0,2940.2,9.364]
[1766644466818,3.40614888,2941.0,2940.1,0.00510352]
[1766644467014,3.40614888,2941.0,2940.2,9.371]
[1766644470720,3.40614888,2941.0,2940.2,10.29477541]
[1766644471520,3.40614888,2941.0,2940.2,9.371]
[1766644471821,3.40614888,2941.0,2940.2,10.31191234]
[1766644474026,3.40614888,2941.0,2940.2,10.2947485]
[1766644474823,3.40614888,2941.0,2940.2,9.371]
[1766644475119,3.40614888,2941.0,2940.2,10.2947485]
[1766644475422,3.40614888,2941.0,2940.2,10.32759025]
[1766644476526,3.40614888,2941.0,2940.2,10.29592015]
[1766644477824,3.40614888,2941.0,2940.2,10.3249556]
[1766644478324,3.40614888,2941.0,2940.2,9.371]
[1766644478923,3.40614888,2941.0,2940.2,10.3249556]
[1766644479327,3.40614888,2941.0,2940.2,9.371]
[1766644479525,3.40614888,2941.0,2940.2,10.29903859]
[1766644480923,3.40614888,2941.0,2940.2,9.371]
[1766644481128,3.40614888,2941.0,2940.2,10.30020222]
[1766644481424,3.40614888,2941.0,2940.2,9.371]
[1766644483629,3.40614888,2941.0,2940.2,10.30020222]
[1766644483927,3.40614888,2941.0,2940.2,9.371]
[1766644485327,3.40614888,2941.0,2940.2,10.28053914]
[1766644486825,3.40614888,2941.0,2940.2,9.371]
[1766644487529,3.40614888,2941.0,2940.2,10.29794585]
[1766644488429,3.40614888,2941.0,2940.2,10.28217989]
[1766644489830,3.40614888,2941.0,2940.2,10.30168684]
[1766644490432,3.40614888,2941.0,2940.2,9.371]
[1766644490733,3.40614888,2941.0,2940.2,10.30168684]
[1766644490927,3.40614888,2941.0,2940.2,10.27841169]
[1766644492933,3.40614888,2941.0,2940.2,9.371]
[1766644493229,3.40614888,2941.0,2940.2,10.28517117]
[1766644494332,3.40614888,2941.0,2940.2,9.371]
[1766644494530,3.40614888,2941.0,2940.2,10.28486457]
[1766644495837,3.40614888,2941.0,2940.2,9.371]
[1766644496039,3.40614888,2941.0,2940.2,10.30780378]
[1766644523064,0.00414888,2941.0,2940.2,10.30780378]
[1766644532476,1.12931943,2941.2,2940.2,10.30780378]
[1766644532662,1.00991943,2941.2,2940.2,10.47799378]
[1766644532863,0.95021943,2941.2,2940.2,10.47799378]
[1766644533473,0.95458553,2941.2,2940.2,10.47799378]
[1766644534072,0.0043661,2941.2,2940.2,10.47799378]
[1766644536678,0.0043661,2941.2,2940.3,0.17018]
[1766644537973,0.0043661,2941.2,2940.4,3.59945665]
[1766644538177,0.0043661,2941.2,2940.5,3.401]
[1766644538376,0.0043661,2941.2,2940.6,5.965]
[1766644538677,0.0043661,2941.2,2940.6,6.97245261]
[1766644545080,1.23098654,2942.1,2940.7,8.504]
[1766644545377,1.23098654,2942.1,2940.8,3.401]
[1766644545579,1.23098654,2942.1,2940.9,5.965]
[1766644546284,1.23382296,2942.1,2940.9,6.23234817]
[1766644546480,0.00283642,2942.1,2941.0,0.17014]
[1766644546681,0.00283642,2942.1,2941.1,3.401]
[1766644561283,3.4,2942.0,2940.6,0.00248831]
[1766644561484,4.70461007,2942.0,2940.7,3.4]
[1766644561686,3.4,2942.0,2940.7,3.4]
[1766644561885,4.70461007,2942.0,2940.7,3.4]
[1766644562391,3.4,2942.0,2940.7,3.4]
[1766644564185,1.3188547,2942.1,2940.7,3.4]
[1766644564391,3.4,2942.0,2940.7,3.4]
[1766644567889,0.00283642,2942.1,2940.7,3.4]
[1766644567890,1.31717779,2942.1,2940.8,0.17015]
[1766644568090,1.31717779,2942.1,2940.8,4.06338266]
[1766644568388,0.00283642,2942.1,2940.8,4.06338266]
[1766644579002,0.00283642,2942.1,2940.9,0.17015]
[1766644579204,0.00283642,2942.1,2941.0,11.902]
[1766644580810,0.00283642,2942.1,2941.0,13.00986006]
[1766644581813,0.00283642,2942.1,2941.1,5.962]
[1766644588718,0.00283642,2942.1,2941.1,7.07143713]
[1766644591723,0.00283642,2942.1,2941.1,5.962]
[1766644591925,0.00283642,2942.1,2941.1,7.12550694]
[1766644593626,0.00283642,2942.1,2941.1,5.962]
[1766644593828,0.00283642,2942.1,2941.1,7.10975481]
[1766644595730,0.00283642,2942.1,2941.1,7.12799854]
[1766644597326,0.00283642,2942.1,2941.1,7.09819444]
[1766644599332,0.00283642,2942.1,2941.1,7.11209282]
[1766644606830,3.4,2942.0,2941.1,1.15009282]
[1766644607136,1.00494563,2941.9,2941.1,2.84209282]
[1766644607433,3.4,2942.0,2941.1,6.24209282]
[1766644608134,3.4,2942.0,2941.1,5.092]
[1766644608828,1.00384401,2941.9,2941.1,1.8698]
[1766644609032,1.00384401,2941.8,2941.1,1.3524]
[1766644609230,3.4,2941.7,2940.7,3.4]
[1766644609440,3.4,2941.7,2940.6,0.00248831]
[1766644609630,3.4,2941.7,2940.6,4.54048831]
[1766644609830,3.4,2941.7,2940.6,0.00248831]
[1766644610032,3.4,2941.7,2940.6,3.40248831]
[1766644628754,1.01467625,2941.6,2940.6,3.40248831]
[1766644629052,5.916,2941.5,2940.6,3.40248831]
[1766644629255,3.401,2941.4,2940.6,3.40248831]
[1766644629450,3.401,2941.4,2940.3,0.08]
[1766644629652,3.57112,2941.4,2940.1,0.00510352]
[1766644629851,3.57112,2941.4,2940.1,3.40610352]
[1766644630061,12.07512,2941.4,2940.1,3.40610352]
[1766644630359,1.01452029,2941.3,2940.1,3.40610352]
[1766644630560,12.07512,2941.4,2940.1,3.40861398]
[1766644630859,1.01466801,2941.3,2940.1,3.40861398]
[1766644631159,12.07512,2941.4,2940.1,3.40861398]
[1766644631345,1.01453193,2941.3,2940.1,3.40861398]
[1766644631545,12.07512,2941.4,2940.1,3.40861398]
[1766644631753,1.01470661,2941.3,2940.1,3.40861398]
[1766644631955,12.07512,2941.4,2940.1,3.40861398]
[1766644632158,1.01470428,2941.3,2940.1,3.40861398]
[1766644632358,12.07512,2941.4,2940.1,3.40861398]
[1766644632545,1.01480883,2941.3,2940.1,3.40861398]
[1766644632745,12.07512,2941.4,2940.1,3.40861398]
[1766644632946,1.01481272,2941.3,2940.1,3.40861398]
[1766644633160,12.07512,2941.4,2940.1,3.40861398]
[1766644633459,1.01471889,2941.3,2940.1,3.40861398]
[1766644633659,1.01471889,2941.2,2940.1,3.40861398]
[1766644633961,3.401,2941.1,2940.1,3.40861398]
[1766644635164,4.76588079,2941.1,2940.1,3.40861398]
[1766644647962,1.36488079,2941.1,2940.1,3.40861398]
[1766644648166,3.402,2941.0,2940.1,3.40861398]
[1766644648365,1.36488079,2941.1,2940.1,3.40861398]
[1766644648565,3.402,2941.0,2940.1,3.40861398]
[1766644648867,3.402,2941.0,2940.2,5.971]
[1766644656276,4.84237916,2941.0,2940.2,5.971]
[1766644658166,4.84237916,2941.0,2940.1,0.00761398]
[1766644658367,1.01704974,2940.9,2940.1,3.42261398]
[1766644658565,4.84237916,2941.0,2940.1,3.42261398]
[1766644658775,1.01704118,2940.9,2940.1,3.42261398]
[1766644658971,4.84237916,2941.0,2940.1,3.42261398]
[1766644659170,1.0170412,2940.9,2940.1,3.42261398]
[1766644659371,4.84237916,2941.0,2940.1,3.42261398]
[1766644659571,1.01721899,2940.9,2940.1,3.42261398]
[1766644659776,4.84237916,2941.0,2940.1,3.42261398]
[1766644659967,1.01721868,2940.9,2940.1,3.42261398]
[1766644660171,4.84237916,2941.0,2940.1,3.42261398]
[1766644660371,1.01721039,2940.9,2940.1,3.42261398]
[1766644660581,4.84237916,2941.0,2940.1,3.42261398]
[1766644660775,1.01721052,2940.9,2940.1,3.42261398]
[1766644660977,4.84237916,2941.0,2940.1,3.42261398]
[1766644661172,1.01720797,2940.9,2940.1,3.42261398]
[1766644661475,4.84237916,2941.0,2940.1,3.42261398]
[1766644661678,1.01720807,2940.9,2940.1,3.42261398]
[1766644661973,4.84237916,2941.0,2940.1,3.42261398]
[1766644662165,1.0172116,2940.9,2940.1,3.42261398]
[1766644662368,4.84237916,2941.0,2940.1,3.42261398]
[1766644662570,1.01720777,2940.9,2940.1,3.42261398]
[1766644662771,4.84237916,2941.0,2940.1,3.42261398]
[1766644662981,1.01720777,2940.9,2940.1,3.42261398]
[1766644663181,4.84237916,2941.0,2940.1,3.42261398]
[1766644663379,1.01720228,2940.9,2940.1,3.42261398]
[1766644663581,4.84237916,2941.0,2940.1,3.42261398]
[1766644663877,1.01720186,2940.9,2940.1,3.42261398]
[1766644664067,4.84237916,2941.0,2940.1,3.42261398]
[1766644664274,1.01719634,2940.9,2940.1,3.42261398]
[1766644664469,4.84237916,2941.0,2940.1,3.42261398]
[1766644664779,1.01719637,2940.9,2940.1,3.42261398]
[1766644664978,4.84237916,2941.0,2940.1,3.42261398]
[1766644665178,1.01719629,2940.9,2940.1,3.42261398]
[1766644665381,4.84237916,2941.0,2940.1,3.42261398]
[1766644665580,1.01718558,2940.9,2940.1,3.42261398]
[1766644665880,4.84237916,2941.0,2940.1,3.42261398]
[1766644666076,1.01718329,2940.9,2940.1,3.42261398]
[1766644666275,4.84237916,2941.0,2940.1,3.42261398]
[1766644666573,1.01718307,2940.9,2940.1,3.42261398]
[1766644666772,4.84237916,2941.0,2940.1,3.42261398]
[1766644666973,1.01718211,2940.9,2940.1,3.42261398]
[1766644667174,4.84237916,2941.0,2940.1,3.42261398]
[1766644667379,1.01718013,2940.9,2940.1,3.42261398]
[1766644667583,4.84237916,2941.0,2940.1,3.42261398]
[1766644667781,1.01718013,2940.9,2940.1,3.42261398]
[1766644667982,4.84237916,2941.0,2940.1,3.42261398]
[1766644668187,1.01718007,2940.9,2940.1,3.42261398]
[1766644668482,4.84237916,2941.0,2940.1,3.42261398]
[1766644668672,1.01715062,2940.9,2940.1,3.42261398]
[1766644668869,4.84237916,2941.0,2940.1,3.42261398]
[1766644669079,1.01714907,2940.9,2940.1,3.42261398]
[1766644669280,4.84237916,2941.0,2940.1,3.42261398]
[1766644669478,1.01714583,2940.9,2940.1,3.42261398]
[1766644669781,4.84237916,2941.0,2940.1,3.42261398]
[1766644669981,1.01714583,2940.9,2940.1,3.42261398]
[1766644670181,4.84237916,2941.0,2940.1,3.42261398]
[1766644670384,1.01714271,2940.9,2940.1,3.42261398]
[1766644670578,4.84237916,2941.0,2940.1,3.42261398]
[1766644670878,1.01714036,2940.9,2940.1,3.42261398]
[1766644671081,4.84237916,2941.0,2940.1,3.42261398]
[1766644671377,1.01713709,2940.9,2940.1,3.42261398]
[1766644671578,4.84237916,2941.0,2940.1,3.42261398]
[1766644671776,1.01713642,2940.9,2940.1,3.42261398]
[1766644671975,4.84237916,2941.0,2940.1,3.42261398]
[1766644672177,1.017127,2940.9,2940.1,3.42261398]
[1766644672476,4.84237916,2941.0,2940.1,3.42261398]
[1766644672777,1.01702142,2940.9,2940.1,3.42261398]
[1766644673076,4.84237916,2941.0,2940.1,3.42261398]
[1766644673277,1.0170104,2940.9,2940.1,3.42261398]
[1766644673477,4.84237916,2941.0,2940.1,3.42261398]
[1766644673678,1.01700979,2940.9,2940.1,3.42261398]
[1766644673884,4.84237916,2941.0,2940.1,3.42261398]
[1766644674085,1.01701053,2940.9,2940.1,3.42261398]
[1766644674289,4.84237916,2941.0,2940.1,3.42261398]
[1766644674584,1.01700635,2940.9,2940.1,3.42261398]
[1766644674777,4.84237916,2941.0,2940.1,3.42261398]
[1766644674979,1.01700822,2940.9,2940.1,3.42261398]
[1766644675278,4.84237916,2941.0,2940.1,3.42261398]
[1766644675579,1.01700381,2940.9,2940.1,3.42261398]
[1766644675775,4.84237916,2941.0,2940.1,3.42261398]
[1766644675972,1.01700608,2940.9,2940.1,3.42261398]
[1766644676188,4.84237916,2941.0,2940.1,3.42261398]
[1766644676386,1.01700171,2940.9,2940.1,3.42261398]
[1766644676589,4.84237916,2941.0,2940.1,3.42261398]
[1766644676783,1.01700191,2940.9,2940.1,3.42261398]
[1766644676985,4.84237916,2941.0,2940.1,3.42261398]
[1766644677186,1.01425508,2940.9,2940.1,3.42261398]
[1766644677379,4.84237916,2941.0,2940.1,3.42261398]
[1766644677580,1.01424925,2940.9,2940.1,3.42261398]
[1766644677786,4.84237916,2941.0,2940.1,3.42261398]
[1766644677988,1.01429676,2940.9,2940.1,3.42261398]
[1766644678287,4.84237916,2941.0,2940.1,3.42261398]
[1766644678590,1.0142916,2940.9,2940.1,3.42261398]
[1766644678787,4.84237916,2941.0,2940.1,3.42261398]
[1766644678991,1.01429141,2940.9,2940.1,3.42261398]
[1766644679193,4.84237916,2941.0,2940.1,3.42261398]
[1766644679389,1.0143318,2940.9,2940.1,3.42261398]
[1766644679694,4.84237916,2941.0,2940.1,3.42261398]
[1766644679894,1.0143318,2940.9,2940.1,3.42261398]
[1766644680088,4.84237916,2941.0,2940.1,3.42261398]
[1766644680284,1.01436949,2940.9,2940.1,3.42261398]
[1766644680484,4.84237916,2941.0,2940.1,3.42261398]
[1766644680782,1.01466173,2940.9,2940.1,3.42261398]
[1766644680982,4.84237916,2941.0,2940.1,3.42261398]
[1766644681183,1.01470142,2940.9,2940.1,3.42261398]
[1766644681381,4.84237916,2941.0,2940.1,3.42261398]
[1766644681586,1.01478685,2940.9,2940.1,3.42261398]
[1766644681793,4.84237916,2941.0,2940.1,3.42261398]
[1766644681994,1.01485754,2940.9,2940.1,3.42261398]
[1766644682197,4.84237916,2941.0,2940.1,3.42261398]
[1766644682388,1.01491592,2940.9,2940.1,3.42261398]
[1766644682587,4.84237916,2941.0,2940.1,3.42261398]
[1766644682787,1.01491608,2940.9,2940.1,3.42261398]
[1766644683086,4.84237916,2941.0,2940.1,3.42261398]
[1766644683286,1.01496043,2940.9,2940.1,3.42261398]
[1766644683486,4.84237916,2941.0,2940.1,3.42261398]
[1766644683687,1.01496903,2940.9,2940.1,3.42261398]
[1766644683888,4.84237916,2941.0,2940.1,3.42261398]
[1766644684090,1.01496903,2940.9,2940.1,3.42261398]
[1766644684386,4.84237916,2941.0,2940.1,3.42261398]
[1766644684587,1.01503898,2940.9,2940.1,3.42261398]
[1766644684787,4.84237916,2941.0,2940.1,3.42261398]
[1766644684989,1.01503758,2940.9,2940.1,3.42261398]
[1766644685192,4.84237916,2941.0,2940.1,3.42261398]
[1766644685394,1.01511725,2940.9,2940.1,3.42261398]
[1766644685593,4.84237916,2941.0,2940.1,3.42261398]
[1766644685794,1.01510832,2940.9,2940.1,3.42261398]
[1766644685996,4.84237916,2941.0,2940.1,3.40961398]
[1766644686195,1.01520553,2940.9,2940.1,3.40961398]
[1766644686399,4.84237916,2941.0,2940.1,3.40961398]
[1766644686695,1.01521104,2940.9,2940.1,3.40961398]
[1766644686894,4.84237916,2941.0,2940.1,3.40961398]
[1766644687095,1.01521143,2940.9,2940.1,3.40961398]
[1766644687293,4.84237916,2941.0,2940.1,3.40961398]
[1766644687497,1.01536449,2940.9,2940.1,3.40961398]
[1766644687798,4.84237916,2941.0,2940.1,3.40961398]
[1766644688002,1.01536406,2940.9,2940.1,3.40961398]
[1766644688197,4.84237916,2941.0,2940.1,3.40961398]
[1766644688395,1.01549937,2940.9,2940.1,3.40961398]
[1766644688596,4.84237916,2941.0,2940.1,3.40961398]
[1766644688797,1.01549947,2940.9,2940.1,3.40961398]
[1766644688996,1.44037916,2941.0,2940.1,3.40961398]
[1766644689196,3.402,2940.8,2940.1,3.40961398]
[1766644694600,3.402,2940.8,2940.1,3.4044617]
[1766644695110,1.01540673,2940.7,2940.1,3.4044617]
[1766644695403,3.402,2940.8,2940.1,3.4044617]
[1766644695599,0.00510352,2940.7,2940.2,0.00510352]
[1766644696995,0.00510352,2940.7,2940.2,3.52e-06]
[1766644697198,1.01534432,2940.6,2939.6,3.402]
[1766644697505,10.33334432,2940.5,2939.6,3.402]
[1766644697706,1.01534432,2940.4,2939.6,3.402]
[1766644697908,9.318,2940.5,2939.6,3.402]
[1766644698214,1.01471762,2940.4,2939.8,0.00510352]
[1766644698511,9.318,2940.5,2939.8,0.00510352]
[1766644698807,1.01431408,2940.4,2939.8,0.00510352]
[1766644699007,9.318,2940.5,2939.8,0.00510352]
[1766644708219,1.46934237,2940.6,2939.8,0.00510352]
[1766644708714,1.46934237,2940.6,2939.9,3.402]
[1766644712617,1.27034237,2940.6,2939.9,3.402]
[1766644712918,1.08294237,2940.6,2939.9,3.402]
[1766644714711,0.17012,2941.1,2939.9,3.402]
[1766644714910,4.90687198,2941.0,2939.9,3.402]
[1766644715110,3.89,2941.0,2939.9,3.402]
[1766644715822,0.00510352,2940.7,2939.9,3.402]
[1766644729029,0.00510352,2940.7,2939.8,0.00510352]
[1766644729223,0.00510352,2940.7,2940.0,5.969]
[1766644734425,3.40710352,2940.7,2940.0,5.969]
[1766644735131,4.90789886,2940.7,2940.0,5.969]
[1766644739129,4.90789886,2940.7,2940.1,3.402]
[1766644749141,3.40710352,2940.7,2940.1,3.402]
[1766644749337,4.90149379,2940.7,2940.1,3.402]
[1766644752539,3.40710352,2940.7,2940.1,3.402]
[1766644753641,4.90728967,2940.7,2940.1,3.402]
[1766644757847,4.90728967,2940.7,2939.8,0.00510352]
[1766644758346,1.01909624,2940.6,2939.6,0.00432119]
[1766644758548,6.93509624,2940.5,2939.6,0.00432119]
[1766644758733,4.42109624,2940.4,2939.6,0.00432119]
[1766644758937,3.402,2940.4,2939.6,0.00432119]
[1766644759138,3.402,2940.4,2939.7,0.00510352]
[1766644781173,3.402,2940.4,2939.7,3.40710352]
[1766644782278,11.58385509,2940.6,2939.7,3.40710352]
[1766644782483,14.98585509,2940.6,2939.7,3.40710352]
[1766644809497,14.98585509,2940.6,2939.8,5.966]
[1766644811791,14.98585509,2940.6,2939.9,3.402]
[1766644816602,11.58385509,2940.6,2939.9,3.402]
[1766644837939,0.00510352,2940.7,2939.9,3.402]
[1766644838135,0.00510352,2940.7,2939.9,4.63307699]